fUSD/lending_fUSD_20240427
["ID","MTS","AMOUNT","RATE_DAILY","PERIOD"]
[323749353,1714233047985,-151.0,0.00010959,2]
[323749354,1714233047994,-150.0,0.00010959,2]
[323749355,1714233048004,-151.0,0.00010959,2]
[323749356,1714233048014,-151.0,0.00010959,2]
[323749357,1714233048023,-151.0,0.00010959,2]
[323749358,1714233048032,-1218.022158,0.00010959,2]
[323749359,1714233048042,-151.0,0.00010959,2]
[323749360,1714233048051,-151.0,0.00010959,2]
[323749361,1714233048060,-1218.022158,0.00010959,2]
[323749362,1714233048069,-657.268982,0.00010959,2]
[323749363,1714233048079,-657.268982,0.00010959,2]
[323749364,1714233048088,-151.332327,0.00010959,2]
[323749365,1714233048098,-204.663749,0.00010959,2]
[323749366,1714233048107,-204.663749,0.00010959,2]
[323749367,1714233048117,-204.663749,0.00010959,2]
[323749368,1714233048127,-204.663749,0.00010959,2]
[323749369,1714233048137,-165.237824,0.00010959,2]
[323749370,1714233048146,-245.135953,0.00010959,2]
[323749371,1714233048155,-245.135953,0.00010959,2]
[323749372,1714233048164,-245.135953,0.00010959,2]
[323749373,1714233048173,-245.135953,0.00010959,2]
[323749374,1714233048182,-151.0,0.00010959,2]
[323749375,1714233048191,-151.0,0.00010959,2]
[323749376,1714233048200,-248.697651,0.00010959,2]
[323749377,1714233048209,-653.723959,0.00010959,2]
[323749378,1714233048218,-653.723959,0.00010959,2]
[323749379,1714233048228,-190.039299,0.00010959,2]
[323749380,1714233048238,-190.039299,0.00010959,2]
[323749381,1714233048249,-653.723959,0.00010959,2]
[323749382,1714233048258,-653.723959,0.00010959,2]
[323749383,1714233048267,-151.0,0.00010959,2]
[323749384,1714233048276,-190.039299,0.00010959,2]
[323749385,1714233048285,-151.0,0.00010959,2]
[323749386,1714233048295,-190.039299,0.00010959,2]
[323749387,1714233048305,-151.0,0.00010959,2]
[323749388,1714233048314,-151.0,0.00010959,2]
[323749389,1714233048324,-233.575209,0.00010959,2]
[323749390,1714233048333,-159.368629,0.00010959,2]
[323749391,1714233048342,-154.090942,0.00010959,2]
[323749392,1714233048351,-223.991353,0.00010959,2]
[323749393,1714233048361,-151.0,0.00010959,2]
[323749394,1714233048370,-157.456973,0.00010959,2]
[323749395,1714233048381,-151.0,0.00010959,2]
[323749396,1714233048395,-151.0,0.00010959,2]
[323749397,1714233048404,-2750.0,0.00011,3]
[323749398,1714233048413,-16616.65659237,0.00011,2]
[323749399,1714233048426,-22714.8706778,0.00011,2]
[323749400,1714233048461,-33500.18828256,0.00011,2]
[323749401,1714233048525,-257.21,0.00011,2]
[323749402,1714233048550,-9240.0,0.00011,2]
[323749403,1714233049684,-16609.55967945,0.00011,2]
[323749404,1714233049696,-1085356.51029693,0.00011,2]
[323749405,1714233049708,-600.5,0.00011,2]
[323749406,1714233049719,-9394.83566334,0.00011,2]
[323749407,1714233049729,-2599.14543546,0.00011,2]
[323749408,1714233049740,-1244.50572667,0.00011,2]
[323749409,1714233049755,-1086.56026731,0.00011,2]
[323749410,1714233049766,-2485.11247109,0.00011,2]
[323749411,1714233049784,-529.12011047,0.00011,2]
[323749412,1714233050039,-17099.33383585,0.00011,2]
[323749413,1714233050138,-360.68756511,0.00011,2]
[323749414,1714233050150,-2004.17478538,0.00011,2]
[323749415,1714233050162,-3353.76447742,0.00011,2]
[323749416,1714233050175,-6757.96750055,0.00011,2]
[323749417,1714233050187,-32793.82785512,0.00011,2]
[323749418,1714233050199,-1617.592005,0.00011,2]
[323749419,1714233050210,-1363.68834929,0.00011,2]
[323749420,1714233050222,-455.64,0.00011,2]
[323749421,1714233050235,-315.0,0.00011,2]
[323749422,1714233050641,-3361.4502386,0.00010957,2]
[323749423,1714233050651,-500.0,0.00010958,2]
[323749424,1714233050660,-42437.87303368,0.00011,2]
[323749425,1714233050670,-151.0,0.00011,2]
[323749426,1714233050679,-151.0,0.00011,2]
[323749427,1714233050689,-151.0,0.00011,2]
[323749428,1714233050698,-151.0,0.00011,2]
[323749429,1714233050707,-151.0,0.00011,2]
[323749430,1714233050717,-151.0,0.00011,2]
[323749431,1714233050726,-299.639523,0.00011,2]
[323749432,1714233050735,-299.639523,0.00011,2]
[323749433,1714233050744,-230.065729,0.00011,2]
[323749434,1714233050754,-230.065729,0.00011,2]
[323749435,1714233050764,-151.0,0.00011,2]
[323749436,1714233050773,-151.0,0.00011,2]
[323749437,1714233050782,-277.149944,0.00011,2]
[323749438,1714233050791,-170.258817,0.00011,2]
[323749439,1714233050800,-151.0,0.00011,2]
[323749440,1714233050810,-213.060866,0.00011,2]
[323749441,1714233050819,-151.0,0.00011,2]
[323749442,1714233050828,-1218.022158,0.00011,2]
[323749443,1714233050837,-151.0,0.00011,2]
[323749444,1714233050846,-151.0,0.00011,2]
[323749445,1714233050855,-1218.022158,0.00011,2]
[323749446,1714233050865,-657.268982,0.00011,2]
[323749447,1714233050874,-657.268982,0.00011,2]
[323749448,1714233050883,-204.663749,0.00011,2]
[323749449,1714233050893,-204.663749,0.00011,2]
[323749450,1714233050902,-245.135953,0.00011,2]
[323749451,1714233050911,-245.135953,0.00011,2]
[323749452,1714233050920,-151.0,0.00011,2]
[323749453,1714233050930,-1829.311017,0.00011,2]
[323749454,1714233050939,-1829.311017,0.00011,2]
[323749455,1714233050948,-653.723959,0.00011,2]
[323749456,1714233050957,-190.039299,0.00011,2]
[323749457,1714233050966,-653.723959,0.00011,2]
[323749458,1714233050976,-293.324838,0.00011,2]
[323749459,1714233050985,-190.039299,0.00011,2]
[323749460,1714233050994,-151.0,0.00011,2]
[323749461,1714233051004,-168.257593,0.00011,2]
[323749462,1714233051013,-24680.58774219,0.00011082,2]
[323749463,1714233051022,-3000.0,0.0001112,2]
[323749464,1714233051031,-104942.30143434,0.00011129,2]
[323749465,1714233051040,-2119.31056254,0.00011132,2]
[323749466,1714233051049,-512.6650182,0.00011132,2]
[323749467,1714233051059,-4238.2775,0.00011132,2]
[323749468,1714233051068,-439.73,0.00011159,2]
[323749469,1714233051078,-8736.8580827,0.00011222,2]
[323749470,1714233051087,-973.2062076,0.00011222,2]
[323749471,1714233051097,-324.1181473,0.00011222,2]
[323749472,1714233051107,-155.1808917,0.0001123,2]
[323749473,1714233051116,-2276.58015871,0.00011231,2]
[323749474,1714233051126,-1903.59616874,0.00011231,2]
[323749475,1714233051136,-500.0,0.00011231,2]
[323749476,1714233051146,-500.0,0.00011231,2]
[323749477,1714233051156,-500.0,0.00011231,2]
[323749478,1714233051164,-690.86,0.00011231,2]
[323749479,1714233051174,-500.0,0.00011232,2]
[323749480,1714233051183,-500.0,0.00011232,2]
[323749481,1714233051192,-151.0,0.00011232,2]
[323749482,1714233051201,-500.0,0.00011232,2]
[323749483,1714233051211,-207.71,0.00011232,2]
[323749484,1714233051220,-215.429781,0.00011232,2]
[323749485,1714233051229,-339.534527,0.00011232,2]
[323749486,1714233051239,-339.534527,0.00011232,2]
[323749487,1714233051248,-500.0,0.00011232,2]
[323749488,1714233051258,-151.0,0.00011232,2]
[323749489,1714233051267,-312.51142,0.00011232,2]
[323749490,1714233051276,-312.51142,0.00011232,2]
[323749491,1714233051285,-158.181493,0.00011232,2]
[323749492,1714233051294,-158.181493,0.00011232,2]
[323749493,1714233051304,-159.459758,0.00011232,2]
[323749494,1714233051313,-500.0,0.00011232,2]
[323749495,1714233051322,-159.459758,0.00011232,2]
[323749496,1714233051331,-500.0,0.00011232,2]
[323749497,1714233051341,-500.0,0.00011232,2]
[323749498,1714233051351,-500.0,0.00011232,2]
[323749499,1714233051362,-151.0,0.00011232,2]
[323749500,1714233051372,-151.0,0.00011232,2]
[323749501,1714233051386,-348.6,0.00011232,2]
[323749502,1714233051396,-151.0,0.00011232,2]
[323749503,1714233051405,-151.0,0.00011232,2]
[323749504,1714233051415,-500.0,0.00011232,2]
[323749505,1714233051426,-500.0,0.00011232,2]
[323749506,1714233051436,-500.0,0.00011232,2]
[323749507,1714233051446,-688.1,0.00011232,2]
[323749508,1714233051455,-500.0,0.00011232,2]
[323749509,1714233051467,-500.0,0.00011232,2]
[323749510,1714233051476,-500.0,0.00011232,2]
[323749511,1714233051486,-244.151537,0.00011232,2]
[323749512,1714233051495,-242.15,0.00011232,2]
[323749513,1714233051506,-504.39842799,0.00011232,2]
[323749514,1714233051516,-500.0,0.00011232,2]
[323749515,1714233051525,-594.89,0.00011232,2]
[323749516,1714233051534,-151.0,0.00011232,2]
[323749517,1714233051545,-500.0,0.00011232,2]
[323749518,1714233051555,-151.0,0.00011232,2]
[323749519,1714233051564,-479.97823077,0.00011232,2]
[323749520,1714233051574,-903.33,0.00011232,2]
[323749521,1714233051584,-500.0,0.00011232,2]
[323749522,1714233051593,-466.1,0.00011232,2]
[323749523,1714233051603,-509.13,0.00011232,2]
[323749524,1714233051613,-500.0,0.00011232,2]
[323749525,1714233051622,-500.0,0.00011232,2]
[323749526,1714233051632,-544.32,0.00011232,2]
[323749527,1714233051641,-571.27,0.00011232,2]
[323749528,1714233051650,-1029.91,0.00011232,2]
[323749529,1714233051659,-299.639523,0.00011232,2]
[323749530,1714233051669,-500.0,0.00011232,2]
[323749531,1714233051678,-299.639523,0.00011232,2]
[323749532,1714233051688,-500.0,0.00011232,2]
[323749533,1714233051698,-500.0,0.00011232,2]
[323749534,1714233051708,-500.0,0.00011232,2]
[323749535,1714233051718,-500.0,0.00011232,2]
[323749536,1714233051728,-601.91,0.00011232,2]
[323749537,1714233051738,-500.0,0.00011232,2]
[323749538,1714233051749,-500.0,0.00011232,2]
[323749539,1714233051760,-541.47,0.00011232,2]
[323749540,1714233051769,-500.0,0.00011232,2]
[323749541,1714233051777,-500.0,0.00011232,2]
[323749542,1714233051786,-500.0,0.00011232,2]
[323749543,1714233051796,-500.0,0.00011232,2]
[323749544,1714233051806,-500.0,0.00011232,2]
[323749545,1714233051815,-500.0,0.00011232,2]
[323749546,1714233051824,-606.69,0.00011232,2]
[323749547,1714233051833,-500.0,0.00011232,2]
[323749548,1714233051844,-500.0,0.00011232,2]
[323749549,1714233051853,-500.0,0.00011232,2]
[323749550,1714233051863,-894.76,0.00011232,2]
[323749551,1714233051874,-230.065729,0.00011232,2]
[323749552,1714233051883,-500.0,0.00011232,2]
[323749553,1714233051893,-500.0,0.00011232,2]
[323749554,1714233051903,-230.065729,0.00011232,2]
[323749555,1714233051912,-500.0,0.00011232,2]
[323749556,1714233051922,-827.76,0.00011232,2]
[323749557,1714233051931,-480.53,0.00011232,2]
[323749558,1714233051941,-500.0,0.00011232,2]
[323749559,1714233051950,-559.18,0.00011232,2]
[323749560,1714233051962,-500.0,0.00011232,2]
[323749561,1714233051971,-791.25,0.00011232,2]
[323749562,1714233051980,-151.0,0.00011232,2]
[323749563,1714233051990,-500.0,0.00011232,2]
[323749564,1714233051999,-151.0,0.00011232,2]
[323749565,1714233052008,-500.0,0.00011232,2]
[323749566,1714233052017,-500.0,0.00011232,2]
[323749567,1714233052026,-500.0,0.00011232,2]
[323749568,1714233052035,-500.0,0.00011232,2]
[323749569,1714233052045,-178.0,0.00011232,2]
[323749570,1714233052055,-500.0,0.00011232,2]
[323749571,1714233052064,-500.0,0.00011232,2]
[323749572,1714233052074,-500.0,0.00011232,2]
[323749573,1714233052083,-500.0,0.00011232,2]
[323749574,1714233052092,-595.62,0.00011232,2]
[323749575,1714233052101,-500.0,0.00011232,2]
[323749576,1714233052110,-500.0,0.00011232,2]
[323749577,1714233052119,-500.0,0.00011232,2]
[323749578,1714233052129,-500.0,0.00011232,2]
[323749579,1714233052139,-500.0,0.00011232,2]
[323749580,1714233052148,-237.39,0.00011232,2]
[323749581,1714233052157,-500.0,0.00011232,2]
[323749582,1714233052167,-500.0,0.00011232,2]
[323749583,1714233052177,-500.0,0.00011232,2]
[323749584,1714233052186,-500.0,0.00011232,2]
[323749585,1714233052196,-564.34,0.00011232,2]
[323749586,1714233052205,-500.0,0.00011232,2]
[323749587,1714233052215,-500.0,0.00011232,2]
[323749588,1714233052224,-990.35,0.00011232,2]
[323749589,1714233052234,-500.0,0.00011232,2]
[323749590,1714233052244,-272.79,0.00011232,2]
[323749591,1714233052255,-500.0,0.00011232,2]
[323749592,1714233052264,-500.0,0.00011232,2]
[323749593,1714233052274,-500.0,0.00011232,2]
[323749594,1714233052283,-500.0,0.00011232,2]
[323749595,1714233052292,-500.0,0.00011232,2]
[323749596,1714233052302,-500.0,0.00011232,2]
[323749597,1714233052311,-500.0,0.00011232,2]
[323749598,1714233052320,-1038.55,0.00011232,2]
[323749599,1714233052330,-500.0,0.00011232,2]
[323749600,1714233052340,-506.99936059,0.00011232,2]
[323749601,1714233052350,-500.0,0.00011232,2]
[323749602,1714233052359,-597.82,0.00011232,2]
[323749603,1714233052368,-500.0,0.00011232,2]
[323749604,1714233052378,-404.14629198,0.00011232,2]
[323749605,1714233052390,-500.0,0.00011232,2]
[323749606,1714233052400,-500.0,0.00011232,2]
[323749607,1714233052409,-193.53,0.00011232,2]
[323749608,1714233052418,-500.0,0.00011232,2]
[323749609,1714233052428,-500.0,0.00011232,2]
[323749610,1714233052436,-566.33,0.00011232,2]
[323749611,1714233052445,-500.0,0.00011232,2]
[323749612,1714233052454,-500.0,0.00011232,2]
[323749613,1714233052467,-500.0,0.00011232,2]
[323749614,1714233052477,-500.0,0.00011232,2]
[323749615,1714233052486,-500.0,0.00011232,2]
[323749616,1714233052652,-500.23,0.00011232,2]
[323749617,1714233052662,-1011.75,0.00011232,2]
[323749618,1714233052672,-500.0,0.00011232,2]
[323749619,1714233052681,-529.12011047,0.00011232,2]
[323749620,1714233052691,-500.0,0.00011232,2]
[323749621,1714233052700,-611.74,0.00011232,2]
[323749622,1714233052709,-500.0,0.00011232,2]
[323749623,1714233052720,-932.69,0.00011232,2]
[323749624,1714233052730,-500.0,0.00011232,2]
[323749625,1714233052739,-730.38,0.00011232,2]
[323749626,1714233052749,-500.0,0.00011232,2]
[323749627,1714233052759,-500.0,0.00011232,2]
[323749628,1714233052769,-151.0,0.00011232,2]
[323749629,1714233052778,-151.0,0.00011232,2]
[323749630,1714233052787,-500.0,0.00011232,2]
[323749631,1714233052796,-500.0,0.00011232,2]
[323749632,1714233052806,-500.0,0.00011232,2]
[323749633,1714233052815,-151.0,0.00011232,2]
[323749634,1714233052824,-151.0,0.00011232,2]
[323749635,1714233052834,-1218.022158,0.00011232,2]
[323749636,1714233052843,-1218.022158,0.00011232,2]
[323749637,1714233052853,-151.0,0.00011232,2]
[323749638,1714233052862,-151.0,0.00011232,2]
[323749639,1714233052871,-151.0,0.00011232,2]
[323749640,1714233052881,-151.0,0.00011232,2]
[323749641,1714233052890,-500.0,0.00011232,2]
[323749642,1714233052899,-1218.022158,0.00011232,2]
[323749643,1714233052909,-1218.022158,0.00011232,2]
[323749644,1714233052918,-500.0,0.00011232,2]
[323749645,1714233052928,-500.0,0.00011232,2]
[323749646,1714233052937,-295.36,0.00011232,2]
[323749647,1714233052946,-634.16,0.00011232,2]
[323749648,1714233052955,-500.0,0.00011232,2]
[323749649,1714233052965,-500.0,0.00011232,2]
[323749650,1714233052975,-657.268982,0.00011232,2]
[323749651,1714233052985,-657.268982,0.00011232,2]
[323749652,1714233052994,-500.0,0.00011232,2]
[323749653,1714233053003,-632.44,0.00011232,2]
[323749654,1714233053013,-507.63332934,0.00011232,2]
[323749655,1714233053023,-657.268982,0.00011232,2]
[323749656,1714233053033,-657.268982,0.00011232,2]
[323749657,1714233053042,-654.29,0.00011232,2]
[323749658,1714233053052,-500.0,0.00011232,2]
[323749659,1714233053061,-500.0,0.00011232,2]
[323749660,1714233053071,-500.0,0.00011232,2]
[323749661,1714233053080,-500.0,0.00011232,2]
[323749662,1714233053090,-500.0,0.00011232,2]
[323749663,1714233053100,-500.0,0.00011232,2]
[323749664,1714233053110,-263.7129056,0.00011232,2]
[323749665,1714233053119,-2100.67,0.00011232,2]
[323749666,1714233053129,-633.4249711,0.00011232,2]
[323749667,1714233053138,-500.0,0.00011232,2]
[323749668,1714233053147,-500.0,0.00011232,2]
[323749669,1714233053156,-546.31547248,0.00011232,2]
[323749670,1714233053166,-500.0,0.00011232,2]
[323749671,1714233053175,-922.72,0.00011232,2]
[323749672,1714233053185,-2313.64,0.00011232,2]
[323749673,1714233053194,-784.71,0.00011232,2]
[323749674,1714233053204,-1117.69,0.00011232,2]
[323749675,1714233053214,-500.0,0.00011232,2]
[323749676,1714233053224,-500.0,0.00011232,2]
[323749677,1714233053233,-500.0,0.00011232,2]
[323749678,1714233053243,-1934.59,0.00011232,2]
[323749679,1714233053253,-500.0,0.00011232,2]
[323749680,1714233053263,-500.0,0.00011232,2]
[323749681,1714233053273,-500.0,0.00011232,2]
[323749682,1714233053282,-1358.54,0.00011232,2]
[323749683,1714233053293,-872.42,0.00011232,2]
[323749684,1714233053303,-500.0,0.00011232,2]
[323749685,1714233053312,-1202.4,0.00011232,2]
[323749686,1714233053322,-500.0,0.00011232,2]
[323749687,1714233053332,-647.21,0.00011232,2]
[323749688,1714233053342,-500.0,0.00011232,2]
[323749689,1714233053351,-500.0,0.00011232,2]
[323749690,1714233053361,-500.0,0.00011232,2]
[323749691,1714233053371,-350.82055081,0.00011232,2]
[323749692,1714233053875,-149.17944919,0.00011232,2]
[323749693,1714233053885,-1051.96,0.00011232,2]
[323749694,1714233053895,-500.0,0.00011232,2]
[323749695,1714233053904,-500.0,0.00011232,2]
[323749696,1714233053914,-589.75,0.00011232,2]
[323749697,1714233053923,-1480.78,0.00011232,2]
[323749698,1714233053933,-504.17610311,0.00011232,2]
[323749699,1714233053942,-500.0,0.00011232,2]
[323749700,1714233053952,-546.07273924,0.00011232,2]
[323749701,1714233053961,-639.81,0.00011232,2]
[323749702,1714233053971,-500.0,0.00011232,2]
[323749703,1714233053980,-1536.68,0.00011232,2]
[323749704,1714233053991,-630.21,0.00011232,2]
[323749705,1714233054000,-500.0,0.00011232,2]
[323749706,1714233054010,-951.72,0.00011232,2]
[323749707,1714233054019,-500.0,0.00011232,2]
[323749708,1714233054028,-182.10759881,0.00011232,2]
[323749709,1714233054041,-317.89240119,0.00011232,2]
[323749710,1714233054051,-500.0,0.00011232,2]
[323749711,1714233054061,-500.0,0.00011232,2]
[323749712,1714233054070,-500.0,0.00011232,2]
[323749713,1714233054080,-322.61195326,0.00011232,2]
[323749714,1714233054092,-177.38804674,0.00011232,2]
[323749715,1714233054103,-500.0,0.00011232,2]
[323749716,1714233054112,-500.0,0.00011232,2]
[323749717,1714233054122,-500.0,0.00011232,2]
[323749718,1714233054131,-1600.97,0.00011232,2]
[323749719,1714233054140,-204.663749,0.00011232,2]
[323749720,1714233054151,-204.663749,0.00011232,2]
[323749721,1714233054161,-500.0,0.00011232,2]
[323749722,1714233054170,-537.57,0.00011232,2]
[323749723,1714233054181,-722.85845531,0.00011232,2]
[323749724,1714233054193,-714.32538413,0.00011232,2]
[323749725,1714233054205,-425.09584732,0.00011232,2]
[323749726,1714233054217,-459.4508895,0.00011232,2]
[323749727,1714233054229,-1476.87942374,0.00011232,2]
[323749728,1714233054238,-668.28,0.00011232,2]
[323749729,1714233054248,-204.663749,0.00011232,2]
[323749730,1714233054259,-1463.98,0.00011232,2]
[323749731,1714233054268,-204.663749,0.00011232,2]
[323749732,1714233054278,-500.0,0.00011232,2]
[323749733,1714233054287,-500.0,0.00011232,2]
[323749734,1714233054296,-500.0,0.00011232,2]
[323749735,1714233054306,-207.91,0.00011232,2]
[323749736,1714233054315,-500.0,0.00011232,2]
[323749737,1714233054324,-887.23,0.00011232,2]
[323749738,1714233054334,-500.0,0.00011232,2]
[323749739,1714233054344,-1268.43,0.00011232,2]
[323749740,1714233054353,-1724.5,0.00011232,2]
[323749741,1714233054363,-500.0,0.00011232,2]
[323749742,1714233054372,-500.0,0.00011232,2]
[323749743,1714233054382,-536.65,0.00011232,2]
[323749744,1714233054394,-623.75,0.00011232,2]
[323749745,1714233054403,-500.0,0.00011232,2]
[323749746,1714233054412,-500.0,0.00011232,2]
[323749747,1714233054422,-500.0,0.00011232,2]
[323749748,1714233054433,-2522.2,0.00011232,2]
[323749749,1714233054442,-500.0,0.00011232,2]
[323749750,1714233054451,-625.6,0.00011232,2]
[323749751,1714233054461,-500.0,0.00011232,2]
[323749752,1714233054470,-500.0,0.00011232,2]
[323749753,1714233054480,-11143.22,0.00011232,2]
[323749754,1714233054489,-734.91,0.00011232,2]
[323749755,1714233054499,-1740.6,0.00011232,2]
[323749756,1714233054509,-245.135953,0.00011232,2]
[323749757,1714233054519,-245.135953,0.00011232,2]
[323749758,1714233054528,-1220.75,0.00011232,2]
[323749759,1714233054537,-1200.04,0.00011232,2]
[323749760,1714233054547,-576.0654542,0.00011232,2]
[323749761,1714233054557,-500.0,0.00011232,2]
[323749762,1714233054566,-245.135953,0.00011232,2]
[323749763,1714233054575,-1226.75,0.00011232,2]
[323749764,1714233054584,-245.135953,0.00011232,2]
[323749765,1714233054593,-151.0,0.00011232,2]
[323749766,1714233054602,-151.0,0.00011232,2]
[323749767,1714233054611,-500.0,0.00011232,2]
[323749768,1714233054620,-929.25,0.00011232,2]
[323749769,1714233054630,-500.0,0.00011232,2]
[323749770,1714233054639,-1270.3,0.00011232,2]
[323749771,1714233054648,-1222.89,0.00011232,2]
[323749772,1714233054657,-2739.46,0.00011232,2]
[323749773,1714233054667,-503.95,0.00011232,2]
[323749774,1714233054676,-918.48,0.00011232,2]
[323749775,1714233054685,-500.0,0.00011232,2]
[323749776,1714233054694,-500.0,0.00011232,2]
[323749777,1714233054703,-1990.14,0.00011232,2]
[323749778,1714233054713,-500.0,0.00011232,2]
[323749779,1714233054722,-998.67,0.00011232,2]
[323749780,1714233054734,-504.80855703,0.00011232,2]
[323749781,1714233054743,-1300.2,0.00011232,2]
[323749782,1714233054753,-500.0,0.00011232,2]
[323749783,1714233054762,-500.0,0.00011232,2]
[323749784,1714233054772,-1599.37,0.00011232,2]
[323749785,1714233054781,-1653.57,0.00011232,2]
[323749786,1714233054790,-541.55,0.00011232,2]
[323749787,1714233054800,-500.0,0.00011232,2]
[323749788,1714233054809,-1829.311017,0.00011232,2]
[323749789,1714233054820,-1829.311017,0.00011232,2]
[323749790,1714233054829,-1269.56,0.00011232,2]
[323749791,1714233054838,-500.0,0.00011232,2]
[323749792,1714233054847,-10410.12,0.00011232,2]
[323749793,1714233054856,-500.0,0.00011232,2]
[323749794,1714233054866,-1530.76,0.00011232,2]
[323749795,1714233054875,-1829.311017,0.00011232,2]
[323749796,1714233054884,-1829.311017,0.00011232,2]
[323749797,1714233054893,-465.95869788,0.00011232,2]
[323749798,1714233054903,-2012.66,0.00011232,2]
[323749799,1714233054912,-606.7,0.00011232,2]
[323749800,1714233054921,-843.98,0.00011232,2]
[323749801,1714233054930,-500.0,0.00011232,2]
[323749802,1714233054939,-653.723959,0.00011232,2]
[323749803,1714233054949,-653.723959,0.00011232,2]
[323749804,1714233054958,-1659.4,0.00011232,2]
[323749805,1714233054967,-500.0,0.00011232,2]
[323749806,1714233054977,-500.0,0.00011232,2]
[323749807,1714233054986,-190.039299,0.00011232,2]
[323749808,1714233054995,-190.039299,0.00011232,2]
[323749809,1714233055006,-653.723959,0.00011232,2]
[323749810,1714233055015,-653.723959,0.00011232,2]
[323749811,1714233055025,-694.12,0.00011232,2]
[323749812,1714233055034,-190.039299,0.00011232,2]
[323749813,1714233055043,-190.039299,0.00011232,2]
[323749814,1714233055052,-500.0,0.00011232,2]
[323749815,1714233055061,-2703.1,0.00011232,2]
[323749816,1714233055070,-1087.23,0.00011232,2]
[323749817,1714233055079,-6625.09,0.00011232,2]
[323749818,1714233055089,-1164.83,0.00011232,2]
[323749819,1714233055098,-500.0,0.00011232,2]
[323749820,1714233055107,-714.27,0.00011232,2]
[323749821,1714233055117,-762.94,0.00011232,2]
[323749822,1714233055126,-372.23,0.00011232,2]
[323749823,1714233055136,-1102.95,0.00011232,2]
[323749824,1714233055146,-2185.17,0.00011232,2]
[323749825,1714233055156,-520.43,0.00011232,2]
[323749826,1714233055167,-500.0,0.00011232,2]
[323749827,1714233055177,-1022.66,0.00011232,2]
[323749828,1714233055187,-1157.03,0.00011232,2]
[323749829,1714233055196,-500.0,0.00011232,2]
[323749830,1714233055205,-500.0,0.00011232,2]
[323749831,1714233055215,-609.3,0.00011232,2]
[323749832,1714233055224,-500.0,0.00011232,2]
[323749833,1714233055235,-151.0,0.00011232,2]
[323749834,1714233055244,-151.0,0.00011232,2]
[323749835,1714233055253,-1761.54,0.00011232,2]
[323749836,1714233055262,-4396.34,0.00011232,2]
[323749837,1714233055271,-988.41,0.00011232,2]
[323749838,1714233055281,-500.0,0.00011232,2]
[323749839,1714233055291,-1766.49,0.00011232,2]
[323749840,1714233055300,-1298.41,0.00011232,2]
[323749841,1714233055309,-1722.36,0.00011232,2]
[323749842,1714233055319,-2079.57,0.00011232,2]
[323749843,1714233055328,-3175.82,0.00011232,2]
[323749844,1714233055337,-1595.03,0.00011232,2]
[323749845,1714233055346,-1875.58,0.00011232,2]
[323749846,1714233055355,-500.0,0.00011232,2]
[323749847,1714233055365,-500.0,0.00011232,2]
[323749848,1714233055374,-500.0,0.00011232,2]
[323749849,1714233055385,-500.0,0.00011232,2]
[323749850,1714233055396,-500.0,0.00011232,2]
[323749851,1714233055405,-500.0,0.00011232,2]
[323749852,1714233055566,-815.17,0.00011232,2]